bitfinex/quotes_SOLUSD_20260310
["timestamp","ask_amount","ask_price","bid_price","bid_amount"]
[1773111793821,1.13907209,86.639,86.611,11.17617151]
[1773111794320,1.13907209,86.649,86.611,11.17617151]
[1773111794712,1.13907209,86.639,86.6,15.35893189]
[1773111795128,40.39098473,86.653,86.6,15.35893189]
[1773111795129,1.13907209,86.629,86.6,15.35893189]
[1773111795331,1.13907209,86.639,86.6,15.35893189]
[1773111795824,1.13907209,86.639,86.601,1.13029588]
[1773111796220,1.13907209,86.609,86.564,1.13029588]
[1773111796428,1.13907209,86.609,86.531,57.78252666]
[1773111796429,1.13907209,86.607,86.571,1.13029588]
[1773111796609,1.13907209,86.607,86.581,1.13029588]
[1773111797023,1.13907209,86.607,86.58,15.35893189]
[1773111797222,1.13907209,86.607,86.572,1.13029588]
[1773111797414,11.54627748,86.608,86.572,1.13029588]
[1773111797415,1.13907209,86.599,86.572,1.13029588]
[1773111797617,1.13907209,86.599,86.57,0.1]
[1773111797824,40.41197118,86.608,86.521,1.13029588]
[1773111797825,1.13907209,86.579,86.521,1.13029588]
[1773111798025,1.13907209,86.559,86.527,11.55702601]
[1773111798223,1.13907209,86.55,86.521,1.13029588]
[1773111798421,26.91173275,86.56,86.531,1.13029588]
[1773111798928,11.55209764,86.565,86.54,1.23029588]
[1773111799427,26.91031987,86.57,86.54,1.23029588]
[1773111799645,15.35893189,86.57,86.541,1.13029588]
[1773111799827,15.35893189,86.59,86.551,1.13029588]
[1773111800011,15.35893189,86.58,86.551,1.13029588]
[1773111800211,15.35893189,86.59,86.551,1.13029588]
[1773111800412,15.35893189,86.58,86.551,1.13029588]
[1773111801725,1.13907209,86.588,86.552,1.13029588]
[1773111801924,15.35893189,86.58,86.552,1.13029588]
[1773111802228,15.35893189,86.59,86.561,1.13029588]
[1773111802427,11.54821371,86.594,86.561,1.13029588]
[1773111802814,11.54614416,86.609,86.581,1.13029588]
[1773111803029,15.35893189,86.62,86.59,16.48922777]
[1773111803226,1.13907209,86.622,86.59,16.48922777]
[1773111803227,11.545237,86.616,86.591,1.13029588]
[1773111803429,15.35893189,86.63,86.598,1.13029588]
[1773111803430,11.5446399,86.621,86.598,1.13029588]
[1773111803633,11.54368424,86.628,86.601,1.13029588]
[1773111803830,11.54299766,86.633,86.601,1.13029588]
[1773111804034,11.54299766,86.633,86.609,1.13029588]
[1773111804635,11.54299766,86.633,86.611,1.13029588]
[1773111804934,11.28946178,86.638,86.612,1.13029588]
[1773111805135,11.28946178,86.638,86.611,11.54577215]
[1773111805136,11.54094728,86.648,86.621,1.13029588]
[1773111806521,11.54094728,86.648,86.612,1.13029588]
[1773111806522,1.13907209,86.647,86.612,1.13029588]
[1773111806920,12.67868759,86.658,86.621,1.13029588]
[1773111807129,1.13907209,86.657,86.621,1.13029588]
[1773111808041,1.13907209,86.657,86.63,15.35893189]
[1773111808817,1.13907209,86.657,86.581,57.7490841]
[1773111808818,15.35893189,86.65,86.581,57.7490841]
[1773111809137,1.13907209,86.649,86.619,1.13029588]
[1773111809938,1.13907209,86.649,86.621,1.13029588]
[1773111810141,40.3895864,86.656,86.621,1.13029588]
[1773111810334,1.13907209,86.655,86.621,1.13029588]
[1773111810938,41.52959069,86.654,86.621,1.13029588]
[1773111811130,1.13907209,86.653,86.621,1.13029588]
[1773111813644,15.35893189,86.65,86.621,1.13029588]
[1773111813847,1.0922291,86.649,86.613,1.14997033]
[1773111814045,40.39145085,86.652,86.6,11.54734411]
[1773111814046,1.0922291,86.629,86.601,1.14997033]
[1773111814243,1.0922291,86.629,86.588,28.8721863]
[1773111814244,15.35893189,86.62,86.591,1.14997033]
[1773111814639,16.45116099,86.63,86.601,1.14997033]
[1773111815655,1.0922291,86.609,86.573,11.55094544]
[1773111815860,1.0922291,86.609,86.574,1.14997033]
[1773111816349,15.35893189,86.6,86.574,1.14997033]
[1773111816533,15.35893189,86.59,86.563,1.14997033]
[1773111817247,1.0922291,86.599,86.563,1.14997033]
[1773111817448,1.0922291,86.599,86.564,1.14997033]
[1773111817652,3.69383402,86.626,86.542,1.14997033]
[1773111817653,15.35893189,86.58,86.542,1.14997033]
[1773111817833,11.54761079,86.598,86.56,15.35893189]
[1773111817834,15.35893189,86.59,86.56,15.35893189]
[1773111818027,15.35893189,86.59,86.561,1.14997033]
[1773111818252,1.0922291,86.589,86.561,1.14997033]
[1773111818940,15.35893189,86.59,86.561,1.14997033]
[1773111820253,15.35893189,86.59,86.52,15.45893189]
[1773111820254,11.54747745,86.599,86.571,1.14997033]
[1773111820473,1.0922291,86.589,86.539,1.14997033]
[1773111820758,1.0922291,86.598,86.561,1.14997033]
[1773111821735,11.5467101,86.605,86.571,1.14997033]
[1773111822848,15.35893189,86.59,86.559,1.14997033]
[1773111823051,1.0922291,86.589,86.559,1.14997033]
[1773111823361,16.45116099,86.58,86.551,1.14997033]
[1773111823538,15.35893189,86.57,86.543,1.14997033]
[1773111824255,11.55147916,86.569,86.544,11.55481604]
[1773111824451,15.35893189,86.58,86.544,11.55481604]
[1773111824452,11.55027836,86.578,86.545,1.14997033]
[1773111824656,15.35893189,86.57,86.545,1.14997033]
[1773111824867,41.51820336,86.578,86.54,0.1]
[1773111824868,15.35893189,86.56,86.54,0.1]
[1773111825042,15.35893189,86.56,86.54,1.24997033]
[1773111825362,1.0922291,86.569,86.54,1.24997033]
[1773111826062,15.35893189,86.56,86.54,0.1]
[1773111826557,11.55281368,86.559,86.54,0.1]
[1773111827352,57.74541849,86.587,86.54,0.1]
[1773111827353,11.55213477,86.565,86.54,1.24997033]
[1773111827755,15.35893189,86.58,86.541,1.14997033]
[1773111827956,1.0922291,86.569,86.541,1.14997033]
[1773111828259,11.54987814,86.581,86.54,0.1]
[1773111828260,15.35893189,86.56,86.54,0.1]
[1773111828463,1.0922291,86.549,86.52,0.1]
[1773111828648,15.35893189,86.54,86.52,0.1]
[1773111828967,15.35893189,86.53,86.506,1.14997033]
[1773111829345,15.35893189,86.53,86.5,0.1]
[1773111829546,1.0922291,86.529,86.5,0.1]
[1773111829748,1.0922291,86.529,86.5,1.24997033]
[1773111829946,15.35893189,86.53,86.501,1.14997033]
[1773111830562,15.35893189,86.52,86.501,1.14997033]
[1773111830767,1.0922291,86.527,86.5,0.1]
[1773111831072,1.0922291,86.519,86.5,0.1]
[1773111832044,1.0922291,86.519,86.49,0.1]
[1773111832258,15.40307938,86.52,86.492,1.14997033]
[1773111832647,11.55815485,86.519,86.492,1.14997033]
[1773111833061,11.55815485,86.519,86.49,0.1]
[1773111833062,11.55746948,86.525,86.501,1.10489638]
[1773111834246,26.9598502,86.53,86.501,1.10489638]
[1773111834446,11.55677082,86.53,86.501,1.10489638]
[1773111834650,11.55599535,86.536,86.503,1.10489638]
[1773111834848,11.55599535,86.536,86.51,15.40307938]
[1773111835049,28.88526119,86.55,86.521,1.10489638]
[1773111835050,15.40307938,86.55,86.521,1.10489638]
[1773111835267,1.1465889,86.56,86.531,1.10489638]
[1773111835268,15.40307938,86.56,86.531,1.10489638]
[1773111835959,11.55241329,86.562,86.502,40.46149221]
[1773111835960,15.40307938,86.55,86.525,1.10489638]
[1773111836163,11.55241329,86.562,86.531,1.10489638]
[1773111836477,16.54966828,86.56,86.531,1.10489638]
[1773111836768,11.55281368,86.559,86.532,12.66131481]
[1773111837368,11.55281368,86.559,86.533,1.10489638]
[1773111838152,11.55208431,86.565,86.533,1.10489638]
[1773111838355,1.1465889,86.569,86.499,57.80365761]
[1773111838553,1.1465889,86.569,86.531,1.10489638]
[1773111838753,26.95452627,86.57,86.541,1.10489638]
[1773111838754,11.5516126,86.568,86.541,1.10489638]
[1773111839665,1.1465889,86.567,86.53,15.40307938]
[1773111839970,1.1465889,86.559,86.531,1.10489638]
[1773111840168,11.5516126,86.568,86.531,1.10489638]
[1773111840371,11.5516126,86.568,86.541,1.10489638]
[1773111840569,40.43064411,86.568,86.541,1.10489638]
[1773111840772,15.40307938,86.55,86.521,1.10489638]
[1773111840955,15.40307938,86.55,86.521,12.66278406]
[1773111841269,15.40307938,86.55,86.522,1.10489638]
[1773111841767,1.1465889,86.559,86.531,1.10489638]
[1773111843073,11.55281368,86.559,86.531,1.10489638]
[1773111843671,11.55230948,86.563,86.533,1.15702523]
[1773111844552,11.55230948,86.563,86.541,1.15702523]
[1773111844751,11.55230948,86.563,86.54,15.40307938]
[1773111844752,1.15352696,86.583,86.542,1.15702523]
[1773111844976,1.15352696,86.579,86.551,1.15702523]
[1773111845156,1.15352696,86.579,86.543,12.71197479]
[1773111845759,1.15352696,86.579,86.544,1.15702523]
[1773111845976,1.15352696,86.579,86.543,11.55494956]
[1773111845977,1.15352696,86.579,86.551,1.15702523]
[1773111847056,11.55027836,86.578,86.551,1.15702523]
[1773111847568,15.40307938,86.57,86.544,0.11795313]
[1773111847772,1.15352696,86.569,86.532,11.55634783]
[1773111849181,15.40307938,86.55,86.508,11.55962454]
[1773111849382,1.15352696,86.549,86.52,15.40307938]
[1773111849575,1.15352696,86.549,86.511,1.15702523]
[1773111850462,1.15352696,86.539,86.503,12.71722175]
[1773111850879,1.15352696,86.539,86.511,1.15702523]
[1773111851378,1.15352696,86.539,86.513,1.15702523]
[1773111851688,11.55561718,86.538,86.513,1.15702523]
[1773111851888,1.15352696,86.537,86.513,1.15702523]
[1773111853371,11.55588425,86.536,86.513,1.15702523]
[1773111853577,12.70941121,86.536,86.513,1.15702523]
[1773111854363,1.15352696,86.535,86.505,1.15702523]
[1773111854561,1.15352696,86.535,86.306,43.63194058]
[1773111854562,1.15352696,86.519,86.483,1.15702523]
[1773111854762,1.15352696,86.525,86.492,1.15702523]
[1773111854974,1.15352696,86.535,86.501,1.15702523]
[1773111855767,15.40307938,86.54,86.503,1.15702523]
[1773111855768,12.70967829,86.534,86.503,1.15702523]
[1773111855966,1.15352696,86.533,86.503,1.15702523]
[1773111856166,15.40307938,86.51,86.49,0.1]
[1773111856382,1.15352696,86.509,86.49,0.1]
[1773111859285,11.55962454,86.508,86.491,1.15702523]
[1773111859479,11.55962454,86.508,86.49,0.1]
[1773111859787,1.15352696,86.507,86.49,0.1]
[1773111860480,11.55904245,86.513,86.491,1.15702523]
[1773111860779,11.55904245,86.513,86.49,15.50307938]
[1773111860780,1.15352696,86.499,86.49,0.1]
[1773111861682,11.56054318,86.502,86.49,0.1]
[1773111862185,11.56054318,86.502,86.48,16.66010461]
[1773111862186,1.15352696,86.499,86.48,0.1]
[1773111862382,15.40307938,86.49,86.48,0.1]
[1773111862585,1.15352696,86.499,86.48,0.1]
[1773111863787,11.56096094,86.498,86.48,0.1]
[1773111863983,11.55949092,86.509,86.481,1.15702523]
[1773111865986,15.40307938,86.51,86.482,11.56309983]
[1773111866166,11.55891175,86.514,86.483,1.15702523]
[1773111867190,1.15352696,86.518,86.485,1.15702523]
[1773111868491,1.15352696,86.518,86.484,11.56283243]
[1773111868492,15.40307938,86.56,86.511,1.15702523]
[1773111868785,15.40307938,86.56,86.484,40.4699135]
[1773111868786,1.15352696,86.559,86.521,1.15702523]
[1773111869188,1.15352696,86.549,86.521,1.15702523]
[1773111869491,12.70674106,86.556,86.531,1.15702523]
[1773111870390,1.15352696,86.539,86.501,1.15702523]
[1773111870894,1.15352696,86.539,86.51,15.40307938]
[1773111871193,1.15352696,86.549,86.511,1.15702523]
[1773111872592,11.55428201,86.548,86.521,1.15702523]
[1773111873591,41.6165398,86.556,86.521,1.15702523]
[1773111874192,15.40307938,86.55,86.521,1.15702523]
[1773111874698,40.43624936,86.556,86.522,1.09558059]
[1773111874898,1.18029044,86.555,86.53,16.49865997]
[1773111875199,11.5532141,86.556,86.531,1.09558059]
[1773111876494,11.55241329,86.562,86.531,1.09558059]
[1773111876898,1.18029044,86.559,86.531,1.09558059]
[1773111877193,1.18029044,86.559,86.52,15.40307938]
[1773111877194,1.18029044,86.559,86.521,1.09558059]
[1773111878877,1.18029044,86.549,86.51,1.09558059]
[1773111879078,1.18029044,86.549,86.511,1.09558059]
[1773111879494,1.18029044,86.549,86.52,15.40307938]
[1773111879799,1.18029044,86.549,86.521,1.09558059]
[1773111880500,1.18029044,86.557,86.521,1.09558059]
[1773111881279,1.18029044,86.557,86.496,28.90302865]
[1773111881280,1.18029044,86.53,86.484,1.09558059]
[1773111881475,15.40307938,86.54,86.501,1.09558059]
[1773111881795,1.18029044,86.539,86.501,1.09558059]
[1773111881974,15.40307938,86.53,86.501,1.09558059]
[1773111882375,40.42877604,86.572,86.511,1.09558059]
[1773111882376,1.18029044,86.549,86.511,1.09558059]
[1773111883302,11.55428201,86.548,86.521,1.09558059]
[1773111884801,1.18029044,86.555,86.521,1.09558059]
[1773111886399,1.18029044,86.549,86.494,28.90368708]
[1773111886585,40.43624936,86.556,86.5,15.40307938]
[1773111886586,1.18029044,86.539,86.5,15.40307938]
[1773111887200,11.5568191,86.529,86.5,15.40307938]
[1773111887391,1.18029044,86.528,86.5,15.40307938]
[1773111887995,1.18029044,86.528,86.49,15.40307938]
[1773111888193,40.44886685,86.529,86.49,15.40307938]
[1773111888194,1.18029044,86.519,86.49,15.40307938]
[1773111888589,1.18029044,86.519,86.485,1.09558059]
[1773111889288,1.18029044,86.499,86.48,0.1]
[1773111889489,1.15081122,86.497,86.48,0.1]
[1773111890288,15.40307938,86.49,86.46,0.1]
[1773111890487,98.26816803,86.498,86.434,1.16171008]
[1773111890488,1.15081122,86.469,86.434,1.16171008]
[1773111890709,1.15081122,86.459,86.426,1.16171008]
[1773111890898,1.15081122,86.459,86.43,15.40307938]
[1773111891303,3.69383402,86.495,86.41,0.1]
[1773111891304,1.15081122,86.449,86.417,1.16171008]
[1773111891490,12.71845882,86.448,86.417,1.16171008]
[1773111891690,11.5676476,86.448,86.43,15.40307938]
[1773111891902,11.5676476,86.448,86.43,16.56478946]
[1773111892103,11.5676476,86.448,86.431,1.16171008]
[1773111892304,1.15081122,86.458,86.411,1.16171008]
[1773111892507,46.22314322,86.537,86.441,1.16171008]
[1773111892508,11.56523951,86.466,86.441,1.16171008]
[1773111892707,11.56523951,86.466,86.411,1.16171008]
[1773111892708,1.15081122,86.465,86.411,1.16171008]
[1773111893008,16.5538906,86.45,86.421,1.16171008]
[1773111893390,11.56751379,86.449,86.421,1.16171008]
[1773111893814,11.5669287,86.454,86.431,1.16171008]
[1773111894394,1.15081122,86.453,86.422,1.16171008]
[1773111894799,1.15081122,86.449,86.417,1.16171008]
[1773111894996,15.42690356,86.43,86.41,0.1]
[1773111895202,1.15081122,86.419,86.4,0.1]
[1773111895713,11.57166331,86.418,86.4,0.1]
[1773111895906,16.57771478,86.43,86.401,1.16171008]
[1773111896107,1.15081122,86.43,86.401,1.16171008]
[1773111896299,16.57771478,86.43,86.401,1.16171008]
[1773111897017,1.15081122,86.438,86.411,1.16171008]
[1773111897402,152.9525046,86.766,86.421,1.16171008]
[1773111897403,11.56740807,86.45,86.421,1.16171008]
[1773111897607,15.42690356,86.46,86.421,1.16171008]
[1773111897608,1.15081122,86.454,86.421,1.16171008]
[1773111898218,15.42690356,86.45,86.421,1.16171008]
[1773111898406,1.15081122,86.451,86.421,1.16171008]
[1773111898726,15.42690356,86.45,86.422,12.7328378]
[1773111899128,15.42690356,86.45,86.423,1.16171008]
[1773111900112,11.56737998,86.45,86.423,1.16171008]
[1773111900318,11.56737998,86.45,86.425,1.16171008]
[1773111901017,1.15081122,86.449,86.425,1.16171008]
[1773111901394,1.15081122,86.449,86.42,1.16171008]
[1773111901610,55.91273351,86.45,86.402,12.73540623]
[1773111901611,15.42690356,86.43,86.402,12.73540623]
[1773111902219,11.57019056,86.429,86.402,1.16171008]
[1773111902718,1.15081122,86.419,86.4,0.1]
[1773111902905,1.15081122,86.428,86.4,0.1]
[1773111903107,1.15081122,86.419,86.4,0.1]
[1773111904124,1.17520941,86.417,86.4,0.1]
[1773111904426,11.57166331,86.418,86.4,0.1]
[1773111904829,11.5710558,86.423,86.4,0.1]
[1773111905031,11.5710558,86.423,86.4,1.23651158]
[1773111905331,1.17520941,86.419,86.4,0.1]
[1773111906319,11.57166331,86.418,86.4,0.1]
[1773111907039,1.17520941,86.439,86.401,1.13651158]
[1773111907223,1.17520941,86.456,86.43,15.42690356]
[1773111907826,1.17520941,86.456,86.429,1.13651158]
[1773111908435,1.17520941,86.467,86.431,1.13651158]
[1773111908806,12.74031517,86.467,86.431,1.13651158]
[1773111909008,12.74031517,86.467,86.441,1.13651158]
[1773111909309,11.56510576,86.467,86.441,1.13651158]
[1773111909710,11.56510576,86.467,86.43,40.49519842]
[1773111909711,1.17520941,86.486,86.451,1.13651158]
[1773111909909,1.17520941,86.486,86.43,40.49519842]
[1773111909910,1.17520941,86.51,86.47,15.42690356]
[1773111910108,1.17520941,86.51,86.43,40.49519842]
[1773111910109,1.17520941,86.51,86.481,1.13651158]
[1773111910310,11.55949092,86.509,86.481,1.13651158]
[1773111910524,12.73470033,86.509,86.481,1.13651158]
[1773111910736,1.17520941,86.508,86.481,1.13651158]
[1773111911818,11.55949092,86.509,86.481,1.13651158]
[1773111912020,11.55949092,86.509,86.49,15.42690356]
[1773111912417,1.17520941,86.515,86.48,15.42690356]
[1773111912717,1.17520941,86.515,86.481,1.13651158]
[1773111913516,1.17520941,86.515,86.48,15.42690356]
[1773111913517,11.55855564,86.516,86.491,1.13651158]
[1773111914020,1.17520941,86.515,86.482,1.13651158]
[1773111914210,11.55855564,86.516,86.491,1.13651158]
[1773111914406,11.55775409,86.522,86.501,1.13651158]
[1773111914829,11.55775409,86.522,86.492,11.56176293]
[1773111914830,1.17520941,86.543,86.511,1.13651158]
[1773111915020,1.17520941,86.543,86.51,15.42690356]
[1773111915021,15.42690356,86.54,86.51,15.42690356]
[1773111915231,15.42690356,86.53,86.504,1.13651158]
[1773111915429,1.17520941,86.529,86.504,1.13651158]
[1773111916523,11.55638059,86.533,86.51,15.42690356]
[1773111917517,11.55638059,86.533,86.466,61.51969315]
[1773111917518,1.17520941,86.532,86.5,15.42690356]
[1773111918837,1.17520941,86.53,86.5,15.42690356]
[1773111919237,1.17520941,86.53,86.491,1.13651158]
[1773111919418,1.17520941,86.523,86.491,1.13651158]
[1773111920125,1.17520941,86.529,86.501,1.13651158]
[1773111921042,1.17520941,86.509,86.464,1.13651158]
[1773111921226,3.69383402,86.527,86.471,1.13651158]
[1773111921227,1.17520941,86.499,86.471,1.13651158]
[1773111922240,1.17520941,86.509,86.481,1.13651158]
[1773111922926,1.17520941,86.509,86.471,1.13651158]
[1773111923332,1.17520941,86.507,86.471,1.13651158]
[1773111923532,40.45868589,86.508,86.471,1.13651158]
[1773111924032,15.42690356,86.5,86.471,1.13651158]
[1773111924646,1.17520941,86.499,86.471,1.13651158]
[1773111924827,1.17520941,86.489,86.451,1.13651158]
[1773111925145,1.17520941,86.479,86.454,1.13651158]
[1773111925736,15.42690356,86.48,86.45,15.42690356]
[1773111925737,1.17520941,86.477,86.45,15.42690356]
[1773111925930,15.42690356,86.48,86.45,15.42690356]
[1773111925931,1.17520941,86.489,86.452,1.13651158]
[1773111926241,11.56239704,86.488,86.461,1.13651158]
[1773111926434,11.5616813,86.493,86.461,1.13651158]
[1773111926634,1.17520941,86.505,86.471,1.13651158]
[1773111927539,1.17520941,86.505,86.451,40.48536164]
[1773111927540,1.17520941,86.505,86.48,16.56341514]
[1773111927726,11.56015906,86.504,86.481,1.13651158]
[1773111930053,1.17520941,86.539,86.491,1.13651158]
[1773111930358,1.17520941,86.539,86.46,15.42690356]
[1773111930359,1.17520941,86.537,86.501,1.13651158]
[1773111931037,1.17520941,86.537,86.51,15.42690356]
[1773111931239,11.55548365,86.539,86.52,15.42690356]
[1773111931635,11.55548365,86.539,86.511,1.13651158]
[1773111932149,1.17520941,86.539,86.511,1.13651158]
[1773111932445,1.17520941,86.539,86.51,15.42690356]
[1773111932647,1.17520941,86.539,86.503,1.13651158]
[1773111932836,1.17520941,86.539,86.51,15.42690356]
[1773111934644,1.18276563,86.537,86.503,1.13651158]
[1773111934840,1.18276563,86.537,86.51,15.42690356]
[1773111936134,11.55588425,86.536,86.51,15.42690356]
[1773111936448,11.55588425,86.536,86.51,16.65810411]
[1773111937654,1.18276563,86.536,86.51,16.65810411]
[1773111938740,1.18276563,86.536,86.511,1.23120055]
[1773111938931,1.18276563,86.548,86.521,1.23120055]
[1773111940350,1.18276563,86.558,86.531,1.23120055]
[1773111941452,1.18276563,86.556,86.531,1.23120055]
[1773111942556,11.55308062,86.557,86.531,1.23120055]
[1773111942755,1.18276563,86.556,86.531,1.23120055]
[1773111943142,15.42690356,86.55,86.523,1.23120055]
[1773111943347,1.18276563,86.549,86.514,1.23120055]
[1773111943553,1.18276563,86.547,86.514,1.23120055]
[1773111943747,1.18276563,86.547,86.52,16.65810411]
[1773111944863,1.18276563,86.547,86.521,1.23120055]
[1773111945064,11.55366111,86.553,86.531,1.23120055]
[1773111945858,1.18276563,86.553,86.531,1.23120055]
[1773111946048,15.42690356,86.55,86.523,1.23120055]
[1773111946744,11.55281368,86.559,86.54,15.42690356]
[1773111946949,11.55281368,86.559,86.541,0.65329069]
[1773111947148,11.55281368,86.559,86.533,1.23120055]
[1773111947354,12.73557931,86.559,86.533,1.23120055]
[1773111948363,11.55281368,86.559,86.533,1.23120055]
[1773111950848,41.63508071,86.566,86.533,1.23120055]
[1773111951054,1.2035025,86.565,86.533,1.23120055]
[1773111951570,1.2035025,86.572,86.55,15.42690356]
[1773111952269,11.55014495,86.579,86.551,1.22103764]
[1773111952455,1.2035025,86.578,86.551,1.22103764]
[1773111953063,1.2035025,86.576,86.551,1.22103764]
[1773111954364,11.55041177,86.577,86.553,1.22103764]
[1773111954869,1.2035025,86.576,86.553,1.22103764]
[1773111955162,11.5506786,86.575,86.553,1.22103764]
[1773111955368,11.5506786,86.575,86.542,28.88764449]
[1773111955369,11.5506786,86.575,86.561,1.22103764]
[1773111955573,11.54934457,86.585,86.561,1.22103764]
[1773111955865,12.75284707,86.585,86.561,1.22103764]
[1773111956070,11.54934457,86.585,86.561,1.22103764]
[1773111956253,11.54934457,86.585,86.57,16.59857682]
[1773111956960,1.2035025,86.584,86.56,15.37753918]
[1773111958674,11.54961135,86.583,86.561,11.55254675]
[1773111958855,11.54961135,86.583,86.56,16.59857682]
[1773111959265,11.54961135,86.583,86.561,1.22103764]
[1773111959573,1.4035025,86.59,86.57,15.37753918]
[1773111959869,1.2035025,86.588,86.56,15.37753918]
[1773111960070,1.2035025,86.588,86.56,16.59857682]
[1773111960263,1.2035025,86.588,86.561,1.22103764]
[1773111961272,11.5490778,86.587,86.561,1.22103764]
[1773111961572,12.7525803,86.587,86.561,1.22103764]
[1773111962168,1.2035025,86.586,86.561,1.22103764]
[1773111963960,1.2583043,86.584,86.561,1.22103764]
[1773111964170,1.2583043,86.579,86.54,16.55877794]
[1773111964360,1.2583043,86.569,86.531,1.18123876]
[1773111965278,1.2583043,86.569,86.532,1.18123876]
[1773111965776,1.2583043,86.559,86.532,1.18123876]
[1773111965951,11.55294715,86.558,86.532,1.18123876]
[1773111966356,40.43531504,86.558,86.532,1.18123876]
[1773111967069,1.2583043,86.539,86.493,1.18123876]
[1773111967274,1.2583043,86.529,86.493,1.18123876]
[1773111967979,1.2583043,86.529,86.501,1.18123876]
[1773111968157,12.81409426,86.537,86.511,1.18123876]
[1773111968865,15.37753918,86.52,86.493,1.18123876]
[1773111969082,11.55578996,86.537,86.501,1.18123876]
[1773111969260,1.2583043,86.536,86.501,1.18123876]
[1773111970385,16.63584348,86.53,86.501,1.18123876]
[1773111970680,1.2583043,86.529,86.501,1.18123876]
[1773111972684,1.2583043,86.509,86.457,1.18123876]
[1773111972986,15.37753918,86.5,86.461,1.18123876]
[1773111973179,1.2583043,86.499,86.461,1.18123876]
[1773111973386,1.2583043,86.489,86.461,1.18123876]
[1773111973771,1.2583043,86.499,86.461,1.18123876]
[1773111975374,1.2583043,86.517,86.491,1.18123876]
[1773111977188,1.2583043,86.522,86.491,1.18123876]
[1773111977396,1.2583043,86.522,86.5,16.55877794]
[1773111977685,1.2583043,86.522,86.5,12.74184812]
[1773111977980,1.2583043,86.522,86.5,1.18123876]
[1773111978178,1.2583043,86.522,86.5,12.74191548]
[1773111978382,1.2583043,86.522,86.5,1.18123876]
[1773111978686,11.55788768,86.521,86.5,1.18123876]
[1773111979191,1.2583043,86.519,86.491,1.18123876]
[1773111980486,11.55828844,86.518,86.491,1.18123876]
[1773111980677,11.55828844,86.518,86.493,1.18123876]
[1773111980888,12.81596932,86.523,86.493,1.18123876]
[1773111981897,11.55766502,86.523,86.493,1.18123876]
[1773111983798,1.2583043,86.528,86.493,1.18123876]
[1773111984086,1.2583043,86.528,86.494,11.56149559]
[1773111984394,1.2583043,86.528,86.495,1.18123876]
[1773111985596,11.55708622,86.527,86.497,1.18123876]
[1773111985802,1.2583043,86.526,86.497,1.18123876]
[1773111986903,1.2583043,86.519,86.472,28.91091032]
[1773111987196,5.7497115,86.5,86.479,1.18123876]
[1773111987373,1.2583043,86.509,86.479,1.18123876]
[1773111987784,1.2583043,86.509,86.481,1.18123876]
[1773111987974,1.2583043,86.515,86.481,1.18123876]
[1773111988376,11.55766541,86.523,86.491,1.18123876]
[1773111988881,12.81596971,86.523,86.491,1.18123876]
[1773111989591,12.81596971,86.523,86.493,1.18123876]
[1773111991901,12.81596971,86.523,86.494,11.56149559]
[1773111992200,1.2583043,86.528,86.501,1.18123876]
[1773111993999,3.69383402,86.553,86.481,1.19138089]
[1773111994000,1.17300921,86.519,86.481,1.19138089]
[1773111994378,1.17300921,86.519,86.467,62.8]
[1773111994379,1.17300921,86.519,86.491,1.19138089]
[1773111994790,1.17300921,86.509,86.476,1.19138089]
[1773111996589,1.17300921,86.509,86.481,1.19138089]
[1773111997801,1.17300921,86.507,86.482,11.56309983]
[1773111997998,1.17300921,86.507,86.482,12.75448072]
[1773111998327,1.17300921,86.514,86.483,1.19138089]
[1773111998719,15.40142427,86.51,86.483,1.19138089]
[1773111999018,1.17300921,86.512,86.483,1.19138089]
[1773112001510,11.55815485,86.519,86.484,11.56283243]
[1773112001805,12.7307633,86.522,86.491,1.19138089]
[1773112001985,15.40142427,86.52,86.491,1.19138089]
[1773112002306,16.57443348,86.52,86.491,1.19138089]
[1773112003005,1.17300921,86.519,86.491,1.19138089]
[1773112003181,1.17300921,86.519,86.484,11.56283243]
[1773112003385,1.17300921,86.509,86.485,1.19138089]
[1773112003691,1.17300921,86.507,86.48,16.59280516]
[1773112003899,1.17300921,86.507,86.481,1.19138089]
[1773112007497,11.55989179,86.506,86.482,11.56309983]
[1773112007699,1.21524826,86.505,86.482,11.56309983]
[1773112007902,1.21524826,86.505,86.482,12.72775159]
[1773112008407,1.21524826,86.505,86.483,1.16465176]
[1773112008617,1.21524826,86.505,86.484,11.56283243]
[1773112009114,1.21524826,86.505,86.484,12.72748419]
[1773112009900,1.21524826,86.505,86.485,1.16465176]
[1773112012817,11.56015906,86.504,86.485,1.16465176]
[1773112013113,1.21524826,86.509,86.486,1.16465176]
[1773112014619,1.21524826,86.518,86.488,1.16465176]
[1773112014801,1.21524826,86.518,86.487,11.56243134]
[1773112015117,1.21524826,86.518,86.488,1.16465176]
[1773112016614,1.21524826,86.509,86.482,1.16465176]
[1773112016813,1.21524826,86.499,86.461,1.16465176]
[1773112017414,1.21524826,86.489,86.461,1.16465176]
[1773112018216,5.7547576,86.48,86.452,1.16465176]
[1773112018406,1.21524826,86.479,86.452,1.16465176]
[1773112018609,1.21524826,86.479,86.454,1.16465176]
[1773112018913,1.21524826,86.485,86.454,1.16465176]
[1773112019119,1.21524826,86.485,86.461,1.16465176]
[1773112020716,5.7547576,86.48,86.448,11.56753396]